bitfinex-derivatives/quotes_SOLF0:USTF0_20240923
["timestamp","ask_amount","ask_price","bid_price","bid_amount"]
[1727084772449,3.43939863,144.78,144.77,3.4537]
[1727084772747,7.43,144.79,144.78,3.4536]
[1727084772942,10.92399226,144.79,144.78,3.4536]
[1727084775244,7.43,144.8,144.79,3.4534]
[1727084775650,10.87769133,144.8,144.79,3.4534]
[1727084776348,7.43,144.8,144.79,3.4534]
[1727084776649,7.43,144.83,144.78,7.43]
[1727084776948,2.8647,144.85,144.8,7.43]
[1727084777149,2.8647,144.85,144.74,15.52385319]
[1727084777150,1.4238,144.85,144.81,7.43]
[1727084777456,8.8538,144.85,144.8,7.43]
[1727084778152,7.43,144.84,144.8,7.43]
[1727084778652,7.43,144.84,144.82,3.4525]
[1727084781045,4.8758,144.85,144.8,7.43]
[1727084781046,8.8538,144.85,144.8,7.43]
[1727084781650,8.8538,144.85,144.83,3.4523]
[1727084784544,7.43,144.84,144.8,7.43]
[1727084784748,7.43,144.83,144.82,3.4526]
[1727084785954,7.43,144.83,144.81,3.4528]
[1727084786344,7.43,144.82,144.77,7.43]
[1727084786551,7.43,144.8,144.79,3.4533]
[1727084786751,10.85152528,144.8,144.79,3.4533]
[1727084793061,7.43,144.81,144.8,3.4532]
[1727084793752,10.87272367,144.81,144.8,3.4532]
[1727084795856,2.6959,144.84,144.81,3.4527]
[1727084796062,7.43,144.83,144.81,3.4527]
[1727084799063,4.8226,144.84,144.81,3.4527]
[1727084799264,7.43,144.83,144.81,3.4527]
[1727084799862,7.43,144.82,144.74,4.62148261]
[1727084800069,7.43,144.78,144.75,5.96970654]
[1727084800361,7.43,144.78,144.77,3.4539]
[1727084805567,10.85544959,144.79,144.78,3.4536]
[1727084805757,7.43,144.79,144.78,3.4536]
[1727084806470,7.43,144.79,144.73,1.3311]
[1727084806471,1.3368,144.83,144.81,3.4529]
[1727084806661,7.43,144.82,144.76,7.43]
[1727084806971,3.4782031,144.81,144.76,7.43]
[1727084807467,3.4782031,144.81,144.8,3.4532]
[1727084808263,10.9082031,144.81,144.8,3.4532]
[1727084808864,7.43,144.81,144.8,3.4532]
[1727084809966,7.43,144.82,144.81,3.4529]
[1727084812367,7.43,144.82,144.8,3.4531]
[1727084812771,7.43,144.81,144.75,7.43]
[1727084812963,7.43,144.8,144.75,7.43]
[1727084813366,7.43,144.8,144.76,5.97413951]
[1727084813570,7.43,144.8,144.79,3.4534]
[1727084814368,10.9151102,144.8,144.79,3.4534]
[1727084815775,3.4851102,144.8,144.79,3.4534]
[1727084816076,7.43,144.8,144.79,3.4534]
[1727084816279,10.96392289,144.81,144.8,3.4532]
[1727084817177,7.43,144.81,144.8,3.4532]
[1727084817568,10.94250518,144.81,144.8,3.4532]
[1727084820478,10.94250518,144.81,144.79,3.4534]
[1727084820681,7.43,144.8,144.74,7.43]
[1727084820873,7.43,144.78,144.75,5.97511411]
[1727084821077,10.89379805,144.78,144.74,7.43]
[1727084821377,7.43,144.76,144.73,1.3311]
[1727084821584,7.43,144.76,144.74,5.9768756]
[1727084821774,7.43,144.76,144.73,1.3311]
[1727084821980,1.3236,144.83,144.74,5.9767805]
[1727084821981,3.45516101,144.77,144.74,5.9767805]
[1727084822284,7.43,144.75,144.7,6.83112144]
[1727084822473,3.52848386,144.74,144.73,3.4546]
[1727084822880,3.52848386,144.74,144.69,7.43]
[1727084823180,3.52848386,144.74,144.67,1.4003]
[1727084823181,7.43,144.71,144.7,5.97927714]
[1727084823577,7.43,144.71,144.67,1.4003]
[1727084823779,7.43,144.71,144.68,5.98084938]
[1727084823978,7.43,144.7,144.68,5.98084938]
[1727084824175,7.43,144.7,144.65,58.75692703]
[1727084824387,7.43,144.7,144.66,12.8153831]
[1727084824572,7.43,144.7,144.67,5.98172419]
[1727084824776,7.43,144.7,144.65,58.75692703]
[1727084824976,7.43,144.7,144.66,12.80976594]
[1727084825187,7.43,144.7,144.67,5.97916995]
[1727084825388,7.43,144.7,144.68,5.97916995]
[1727084825574,7.43,144.7,144.65,66.18692703]
[1727084825774,7.43,144.7,144.69,3.4558]
[1727084830085,8.8342,144.73,144.68,7.43]
[1727084830295,7.43,144.73,144.68,7.43]
[1727084830484,3.40267642,144.74,144.68,3.456]
[1727084830485,7.43,144.69,144.68,3.456]
[1727084830786,1.4611,144.73,144.66,7.43]
[1727084830981,7.43,144.71,144.67,7.43]
[1727084831191,7.43,144.71,144.7,3.4555]
[1727084831982,7.43,144.73,144.72,3.4551]
[1727084832187,7.43,144.74,144.69,7.43]
[1727084832392,7.43,144.75,144.69,7.43]
[1727084832588,7.43,144.75,144.74,3.4544]
[1727084836892,7.43,144.75,144.73,3.4547]
[1727084837089,7.43,144.74,144.73,3.4547]
[1727084837889,10.83395382,144.74,144.73,3.4547]
[1727084845494,10.83395382,144.74,144.67,8.874]
[1727084845695,10.83395382,144.74,144.68,7.43]
[1727084846493,7.43,144.74,144.73,3.4548]
[1727084846794,1.3912,144.8,144.71,7.43]
[1727084846997,4.89988013,144.8,144.79,3.4534]
[1727084847199,1.4346,144.82,144.75,7.43]
[1727084847404,3.54352485,144.88,144.76,7.43]
[1727084847405,1.3687,144.85,144.76,7.43]
[1727084847596,1.3687,144.85,144.78,7.43]
[1727084847789,7.43,144.84,144.79,7.43]
[1727084848702,7.43,144.83,144.78,7.43]
[1727084848890,7.43,144.82,144.77,1.325]
[1727084849096,7.43,144.82,144.77,8.755]
[1727084849400,7.43,144.8,144.77,1.325]
[1727084850403,7.43,144.8,144.79,3.4532]
[1727084851498,10.85014026,144.8,144.78,3.4536]
[1727084851705,7.43,144.79,144.78,3.4536]
[1727084854303,3.42014026,144.8,144.79,3.4534]
[1727084854503,11.61,144.81,144.79,3.4534]
[1727084855007,3.39919856,144.8,144.79,3.4534]
[1727084857207,11.61,144.83,144.74,11.61]
[1727084858005,15.0624,144.83,144.74,11.61]
[1727084858500,3.4527,144.82,144.72,13.9611]
[1727084858702,11.61,144.81,144.73,5.9571704]
[1727084858907,3.49775474,144.8,144.78,3.4535]
[1727084859299,3.49775474,144.8,144.72,13.9611]
[1727084859499,3.49775474,144.8,144.78,3.4534]
[1727084860002,15.063,144.81,144.78,3.4534]
[1727084861199,3.48981001,144.8,144.72,13.9611]
[1727084862907,3.48981001,144.8,144.79,3.4534]
[1727084865605,11.61,144.81,144.78,3.4536]
[1727084866005,15.0631,144.81,144.78,3.4536]
[1727084867311,3.4532,144.8,144.77,3.4538]
[1727084867608,3.50549803,144.8,144.72,12.9665]
[1727084867799,11.61,144.81,144.72,12.9665]
[1727084868004,15.0631,144.81,144.78,3.4535]
[1727084868909,3.48051661,144.8,144.79,3.4534]
[1727084869402,3.4527,144.82,144.79,3.4534]
[1727084870012,11.61,144.83,144.79,3.4534]
[1727084870206,15.063,144.81,144.78,3.4535]
[1727084873110,3.4532,144.8,144.77,3.4537]
[1727084873313,6.83386611,144.8,144.77,3.4537]
[1727084873609,6.83386611,144.8,144.78,3.4536]
[1727084874406,7.43,144.79,144.78,3.4536]
[1727084874615,10.8834,144.79,144.77,3.4538]
[1727084874809,7.43,144.78,144.77,3.4538]
[1727084876806,7.43,144.82,144.76,7.43]
[1727084877015,7.43,144.82,144.74,1.4576]
[1727084877312,7.43,144.82,144.77,7.43]
[1727084877617,7.43,144.8,144.79,3.4534]
[1727084877807,10.83012436,144.8,144.79,3.4534]
[1727084878413,10.83012436,144.8,144.78,3.4535]
[1727084878615,7.43,144.79,144.78,3.4535]
[1727084880618,7.43,144.79,144.77,3.4538]
[1727084880820,7.43,144.78,144.77,3.4538]
[1727084884823,7.43,144.78,144.72,1.3565]
[1727084885018,3.40012436,144.8,144.68,6.81397248]
[1727084885019,7.43,144.73,144.68,6.81397248]
[1727084885324,7.43,144.73,144.69,5.96461727]
[1727084885618,7.43,144.73,144.68,7.43]
[1727084886218,7.43,144.73,144.72,3.4551]
[1727084888621,7.43,144.73,144.71,3.4551]
[1727084888815,7.43,144.72,144.71,3.4551]
[1727084889829,7.43,144.72,144.7,3.4555]
[1727084890028,7.43,144.71,144.7,3.4555]
[1727084892717,7.43,144.71,144.63,10.91860773]
[1727084892718,7.43,144.71,144.69,3.4557]
[1727084892938,7.43,144.7,144.69,3.4557]
[1727084893220,3.455,144.73,144.64,7.43]
[1727084893420,3.455,144.73,144.63,12.32090773]
[1727084893421,3.455,144.73,144.7,3.4555]
[1727084893626,3.455,144.73,144.65,5.97488413]
[1727084893627,7.43,144.72,144.67,7.43]
[1727084893822,3.48431453,144.75,144.74,3.4546]
[1727084894127,7.43,144.75,144.74,3.4546]
[1727084894422,10.82601769,144.75,144.74,3.4546]
[1727084895425,7.43,144.76,144.75,3.4543]
[1727084898229,3.4536,144.78,144.75,3.4543]
[1727084898432,7.43,144.76,144.75,3.4543]
[1727084899129,4.85254225,144.79,144.76,3.4541]
[1727084899436,7.43,144.77,144.76,3.4541]
[1727084899932,7.43,144.77,144.75,3.4542]
[1727084900126,7.43,144.76,144.75,3.4542]
[1727084900528,3.54352485,144.88,144.69,1.3315]
[1727084900724,1.441,144.85,144.77,7.43]
[1727084900925,7.43,144.83,144.79,7.43]
[1727084901128,7.43,144.83,144.82,3.4525]
[1727084901530,7.43,144.84,144.79,7.43]
[1727084901733,3.46222959,144.83,144.82,3.4527]
[1727084902230,10.89222959,144.83,144.82,3.4527]
[1727084902535,3.46222959,144.83,144.82,3.4527]
[1727084902738,15.062,144.85,144.82,3.4527]
[1727084903430,18.5518749,144.85,144.82,3.4527]
[1727084903635,15.0998749,144.85,144.82,3.4527]
[1727084903835,3.4898749,144.85,144.77,11.61]
[1727084904036,11.61,144.87,144.77,11.61]
[1727084904632,3.3716753,144.86,144.77,11.61]
[1727084905037,3.3716753,144.86,144.84,3.4521]
[1727084905634,11.61,144.87,144.77,11.61]
[1727084906038,15.0611,144.89,144.79,11.61]
[1727084906232,15.0611,144.89,144.85,3.4518]
[1727084906833,11.61,144.87,144.84,3.4521]
[1727084907336,15.0615,144.87,144.84,3.4521]
[1727084907933,11.61,144.85,144.75,3.7858]
[1727084908238,11.61,144.85,144.75,15.3958]
[1727084908930,15.062,144.85,144.82,3.4526]
[1727084909844,3.4522,144.84,144.81,3.4528]
[1727084910633,11.61,144.85,144.81,3.4528]
[1727084910634,15.0621,144.85,144.81,3.4528]
[1727084912848,3.4522,144.84,144.81,3.4528]
[1727084917049,3.4525,144.83,144.79,3.4532]
[1727084917241,11.61,144.83,144.79,3.4532]
[1727084917948,3.4528,144.82,144.79,3.4532]
[1727084918142,11.61,144.83,144.8,3.453]
[1727084918341,15.0625,144.83,144.8,3.453]
[1727084919139,11.61,144.83,144.81,3.4528]
[1727084919345,17.8291,144.84,144.81,3.4528]
[1727084921040,11.61,144.84,144.82,3.4526]
[1727084925953,3.4518,144.86,144.83,3.4524]
[1727084926147,3.4518,144.86,144.77,15.06226581]
[1727084926344,7.43,144.85,144.8,7.43]
[1727084928256,7.43,144.85,144.83,3.4523]
[1727084928658,10.882,144.85,144.83,3.4523]
[1727084928955,10.882,144.85,144.77,3.52790826]
[1727084928956,7.43,144.84,144.82,3.4525]
[1727084929151,7.43,144.84,144.79,7.43]
[1727084929554,7.43,144.85,144.79,7.43]
[1727084930258,7.43,144.85,144.83,3.4523]
[1727084930556,3.4516,144.87,144.79,7.43]
[1727084930759,7.43,144.85,144.84,3.4521]
[1727084932062,7.43,144.86,144.82,7.43]
[1727084932758,7.43,144.86,144.81,7.43]
[1727084932965,7.43,144.85,144.81,7.43]
[1727084933263,7.43,144.85,144.84,3.4522]
[1727084934356,7.43,144.86,144.84,3.4522]
[1727084935364,7.43,144.86,144.85,3.452]
[1727084938753,7.43,144.86,144.84,3.4521]
[1727084940562,7.43,144.86,144.78,0.9941]
[1727084940762,7.43,144.86,144.81,7.43]
[1727084941573,7.43,144.86,144.85,3.452]
[1727084942071,7.43,144.86,144.78,0.9941]
[1727084942072,4.853,144.88,144.86,3.4517]
[1727084942273,7.43,144.87,144.86,3.4517]
[1727084944968,8.8316,144.88,144.87,3.4515]
[1727084947069,1.4016,144.88,144.87,3.4515]
[1727084947258,10.9174646,144.89,144.88,3.4513]
[1727084947460,7.43,144.89,144.88,3.4513]
[1727084947667,10.92748349,144.89,144.88,3.4513]
[1727084947869,2.847,144.92,144.89,3.4509]
[1727084948069,2.847,144.92,144.8,2.6647]
[1727084948070,7.43,144.91,144.86,7.43]
[1727084948370,3.48884943,144.9,144.86,7.43]
[1727084948571,7.43,144.9,144.86,7.43]
[1727084948866,10.94181206,144.9,144.86,7.43]
[1727084949263,10.94181206,144.9,144.89,3.451]
[1727084950372,10.94181206,144.9,144.88,3.4512]
[1727084952676,10.94181206,144.9,144.89,3.451]
[1727084953267,2.6908,144.97,144.89,7.43]
[1727084953576,7.43,144.96,144.9,7.43]
[1727084954069,7.43,144.95,144.89,7.43]
[1727084954269,7.43,144.93,144.89,7.43]
[1727084954672,7.43,144.93,144.85,2.8525]
[1727084954872,7.43,144.92,144.87,7.43]
[1727084955069,7.43,144.92,144.85,2.8525]
[1727084955267,7.43,144.92,144.87,7.43]
[1727084955781,7.43,144.92,144.9,3.4506]
[1727084957566,7.43,144.92,144.89,3.451]
[1727084957769,7.43,144.91,144.86,7.43]
[1727084957971,3.40259067,144.9,144.86,7.43]
[1727084958174,3.40259067,144.9,144.87,3.4514]
[1727084958383,3.40259067,144.9,144.86,7.43]
[1727084959882,3.40259067,144.9,144.88,3.4511]
[1727084962192,3.40259067,144.9,144.89,3.451]
[1727084964387,3.40259067,144.9,144.88,3.4511]
[1727084964587,7.43,144.89,144.8,6.80434228]
[1727084964786,7.43,144.89,144.83,7.43]
[1727084965087,7.43,144.89,144.88,3.4511]
[1727084965088,10.80890287,144.89,144.88,3.4511]
[1727084965286,10.80890287,144.89,144.81,1.3417]
[1727084965489,7.43,144.87,144.83,7.43]
[1727084965885,7.43,144.89,144.84,7.43]
[1727084966087,10.88763459,144.89,144.84,7.43]
[1727084966395,10.88763459,144.89,144.81,1.3417]
[1727084966684,10.88763459,144.89,144.84,7.43]
[1727084967490,10.88763459,144.89,144.86,3.4515]
[1727084971192,10.88763459,144.89,144.87,3.4515]
[1727084972495,10.88763459,144.89,144.86,3.4516]
[1727084976494,7.43,144.88,144.86,3.4516]
[1727084976794,7.43,144.87,144.85,3.4518]
[1727084977595,7.43,144.86,144.81,1.3417]
[1727084977796,7.43,144.86,144.79,7.43]
[1727084977797,7.43,144.84,144.79,7.43]
[1727084979398,7.43,144.84,144.8,7.43]
[1727084979805,7.43,144.84,144.83,3.4524]
[1727084981804,7.43,144.84,144.75,3.7344]
[1727084981998,7.43,144.81,144.76,12.82194983]
[1727084982199,7.43,144.82,144.78,7.43]
[1727084982804,7.43,144.82,144.75,3.7344]
[1727084982805,7.43,144.82,144.79,7.43]
[1727084983200,7.43,144.83,144.81,3.4528]
[1727084988613,7.43,144.85,144.8,7.43]
[1727084989105,7.43,144.85,144.83,3.4524]
[1727084990600,7.43,144.85,144.8,7.43]
[1727084990601,6.26802028,144.86,144.84,3.4522]
[1727084990805,7.43,144.85,144.84,3.4522]
[1727084991007,7.43,144.85,144.8,7.43]
[1727084991712,10.882,144.85,144.82,3.4525]
[1727084992714,10.882,144.85,144.83,3.4524]
[1727084999012,7.43,144.85,144.83,3.4524]
[1727084999218,15.81642028,144.86,144.84,3.4522]
[1727084999514,12.36462028,144.86,144.81,7.43]
[1727085000407,7.43,144.85,144.81,7.43]
[1727085001207,8.38642028,144.86,144.81,7.43]
[1727085001408,4.93462028,144.86,144.85,3.452]
[1727085001813,3.50522028,144.86,144.85,3.452]
[1727085002611,7.43,144.86,144.84,3.4521]
[1727085002907,10.95100027,144.85,144.8,7.43]
[1727085003108,10.882,144.85,144.79,7.43]
[1727085003309,7.43,144.82,144.78,7.43]
[1727085003813,7.43,144.83,144.79,7.43]
[1727085004706,7.43,144.83,144.82,3.4527]
[1727085010013,7.43,144.83,144.81,3.4528]
[1727085010208,7.43,144.82,144.81,3.4528]
[1727085010512,10.91656814,144.82,144.81,3.4528]
[1727085011215,3.48656814,144.82,144.81,3.4528]
[1727085023819,7.43,144.82,144.8,3.4531]
[1727085024019,10.93476651,144.81,144.76,5.9928025]
[1727085024224,7.43,144.8,144.75,10.1711]
[1727085024418,7.43,144.77,144.72,9.23920416]
[1727085024625,7.43,144.77,144.73,5.99685131]
[1727085024921,7.43,144.77,144.76,3.4541]
[1727085025119,10.83494611,144.78,144.75,7.43]
[1727085025325,3.40494611,144.78,144.75,7.43]
[1727085025621,7.43,144.79,144.77,3.4536]
[1727085026024,3.53481624,144.78,144.77,3.4536]
[1727085026424,7.43,144.79,144.78,3.4536]
[1727085028224,3.46323935,144.8,144.79,3.4534]
[1727085028419,7.43,144.8,144.79,3.4534]
[1727085028621,10.92018794,144.8,144.79,3.4534]
[1727085037240,14.37338794,144.8,144.72,4.60748653]
[1727085037440,7.43,144.78,144.73,20.29184929]
[1727085037636,7.43,144.78,144.74,12.86184929]
[1727085037837,7.43,144.78,144.75,6.00328575]
[1727085038141,7.43,144.78,144.73,7.43]
[1727085038436,7.43,144.78,144.74,12.86255357]
[1727085038645,7.43,144.78,144.75,6.00327624]
[1727085038840,7.43,144.78,144.77,3.4537]
[1727085040449,7.43,144.78,144.72,4.60748653]
[1727085040639,7.43,144.73,144.72,4.60748653]
[1727085040840,7.43,144.73,144.71,3.4552]
[1727085041044,7.43,144.72,144.66,19.29651712]
[1727085041346,7.43,144.69,144.67,12.87328429]
[1727085041549,7.43,144.69,144.68,9.46482429]
[1727085042448,7.43,144.69,144.68,3.456]
[1727085042950,7.43,144.69,144.68,9.46369404]
[1727085044151,3.4549,144.73,144.7,3.4555]
[1727085044356,7.43,144.71,144.7,3.4555]
[1727085045152,7.43,144.71,144.67,6.00229544]
[1727085045354,7.43,144.71,144.66,8.8755]
[1727085045545,7.43,144.71,144.67,6.00491171]
[1727085045745,7.43,144.69,144.66,1.4455]
[1727085045957,7.43,144.68,144.64,10.97155927]
[1727085046151,7.43,144.68,144.67,3.4563]
[1727085046350,7.43,144.68,144.64,6.8607257]
[1727085046651,7.43,144.66,144.63,10.97759015]
[1727085046850,7.43,144.66,144.65,9.46238128]
[1727085047247,7.43,144.66,144.65,3.4567]
[1727085049357,10.90517975,144.69,144.64,13.42666636]
[1727085049651,7.43,144.69,144.64,7.43]
[1727085049855,7.43,144.68,144.67,3.4561]
[1727085060665,3.39855583,144.69,144.68,3.456]
[1727085060855,7.43,144.69,144.68,3.456]
[1727085061057,10.85517998,144.69,144.68,3.456]
[1727085061359,7.43,144.69,144.68,3.456]
[1727085061661,97.02987989,144.77,144.66,7.43]
[1727085061859,7.43,144.72,144.67,7.43]
[1727085062165,7.43,144.69,144.64,7.43]
[1727085062557,7.43,144.69,144.68,3.456]
[1727085065768,7.43,144.69,144.63,7.43]
[1727085065769,7.43,144.69,144.67,3.4562]
[1727085066067,7.43,144.68,144.67,3.4562]
[1727085066562,10.84803222,144.68,144.67,3.4562]
[1727085066764,4.869,144.71,144.65,7.43]
[1727085066765,1.4135,144.71,144.65,7.43]
[1727085067061,7.43,144.7,144.65,7.43]
[1727085067265,10.91648274,144.7,144.65,7.43]
[1727085067656,10.91648274,144.7,144.69,3.4556]
[1727085070361,95.63387989,144.77,144.66,7.43]
[1727085070556,95.63387989,144.77,144.67,7.43]
[1727085070557,7.43,144.71,144.67,7.43]
[1727085070959,1.3742,144.76,144.69,7.43]
[1727085071267,7.43,144.74,144.7,7.43]
[1727085072869,7.43,144.74,144.73,3.4548]
[1727085073365,1.3742,144.76,144.73,3.4548]
[1727085073567,1.3742,144.76,144.74,3.4546]
[1727085073773,7.43,144.75,144.74,3.4546]
[1727085074069,1.3742,144.76,144.74,3.4546]
[1727085074270,7.43,144.75,144.74,3.4546]
[1727085074967,10.8844,144.75,144.67,1.3989]
[1727085075164,7.43,144.72,144.67,8.8289]
[1727085075365,7.43,144.72,144.68,7.43]
[1727085075560,1.3742,144.76,144.72,3.4549]
[1727085075768,7.43,144.74,144.67,4.77911841]
[1727085075973,7.43,144.74,144.7,7.43]
[1727085076868,7.43,144.74,144.73,3.4548]
[1727085078467,7.43,144.74,144.67,7.37554288]
[1727085078667,7.43,144.72,144.67,1.3989]
[1727085078867,7.43,144.72,144.68,7.43]
[1727085079568,7.43,144.7,144.67,1.3989]
[1727085079971,7.43,144.7,144.65,7.43]
[1727085080872,7.43,144.7,144.69,3.4557]
[1727085081871,10.92602879,144.7,144.69,3.4557]
[1727085083379,10.92602879,144.7,144.68,3.456]
[1727085083576,7.43,144.69,144.68,3.456]
[1727085089784,7.43,144.69,144.56,6.9174]
[1727085089974,7.43,144.65,144.61,7.43]
[1727085090172,7.43,144.67,144.62,13.42169672]
[1727085090381,7.43,144.67,144.62,7.43]
[1727085091273,7.43,144.67,144.63,5.99249469]
[1727085091475,7.43,144.67,144.62,7.43]
[1727085091682,7.43,144.67,144.63,5.99136617]
[1727085091982,7.43,144.67,144.66,3.4563]
[1727085092578,7.43,144.67,144.6,6.84672561]
[1727085092776,7.43,144.64,144.6,6.84672561]
[1727085093076,7.43,144.65,144.64,3.4568]
[1727085093377,7.43,144.65,144.6,14.27672561]
[1727085093378,7.43,144.65,144.6,7.43]
[1727085093674,7.43,144.65,144.63,3.4571]
[1727085094377,7.43,144.65,144.64,3.457]
[1727085094678,7.43,144.65,144.6,7.43]
[1727085095377,7.43,144.65,144.63,3.457]
[1727085095579,7.43,144.65,144.6,7.43]
[1727085095979,7.43,144.65,144.58,62.31820845]
[1727085095980,7.43,144.65,144.61,7.43]
[1727085096375,8.8805,144.66,144.64,3.4568]
[1727085096575,8.8805,144.66,144.61,7.43]
[1727085097078,7.43,144.68,144.63,7.43]
[1727085097682,2.879,144.75,144.64,7.43]
[1727085097877,7.43,144.71,144.66,7.43]
[1727085098076,7.43,144.71,144.67,7.43]
[1727085098977,7.43,144.68,144.64,7.43]
[1727085099885,7.43,144.68,144.67,3.4562]
[1727085100275,7.43,144.68,144.62,1.4044]
[1727085100480,7.43,144.67,144.66,3.4563]
[1727085100783,7.43,144.67,144.63,7.43]
[1727085101380,7.43,144.65,144.64,3.4569]
[1727085101585,7.43,144.65,144.59,25.23149987]
[1727085101782,7.43,144.63,144.59,5.9943289]
[1727085102085,7.43,144.63,144.58,66.2162465]
[1727085102285,7.43,144.62,144.6,3.4579]
[1727085102484,3.4565,144.66,144.58,66.2162465]
[1727085102688,7.43,144.63,144.59,13.42539802]
[1727085102993,3.4561,144.68,144.59,7.43]
[1727085103185,7.43,144.66,144.62,7.43]
[1727085103390,7.43,144.67,144.62,7.43]
[1727085104185,7.43,144.66,144.64,3.4568]
[1727085104581,236.21883119,144.87,144.65,7.43]
[1727085104889,7.43,144.76,144.71,7.43]
[1727085105086,1.3435,144.79,144.71,7.43]
[1727085105087,7.43,144.77,144.71,7.43]
[1727085105282,7.43,144.77,144.74,3.4544]
[1727085105487,7.43,144.77,144.72,7.43]
[1727085105682,7.43,144.78,144.72,7.43]
[1727085105886,7.43,144.78,144.77,3.4539]
[1727085106188,7.43,144.8,144.75,7.43]
[1727085108387,3.4523,144.84,144.78,3.4536]
[1727085108388,11.61,144.82,144.78,3.4536]
[1727085113997,11.61,144.82,144.79,3.4534]
[1727085118497,11.61,144.8,144.72,1.3963]
[1727085119699,11.61,144.8,144.77,3.4537]
[1727085121299,11.61,144.8,144.72,1.3963]
[1727085121504,11.61,144.76,144.7,1.37]
[1727085121703,3.46393121,144.75,144.67,1.343]
[1727085122009,3.46393121,144.75,144.73,3.4548]
[1727085122195,3.46393121,144.75,144.67,1.343]
[1727085122595,11.61,144.76,144.67,1.343]
[1727085122899,11.61,144.76,144.73,3.4547]
[1727085123094,15.06391086,144.76,144.67,1.343]
[1727085123500,18.51821086,144.76,144.72,3.4549]
[1727085127402,3.4544,144.75,144.72,3.4549]
[1727085128216,11.61,144.74,144.65,1.4116]
[1727085128510,11.61,144.72,144.65,1.4116]
[1727085128718,11.61,144.72,144.69,3.4556]
[1727085129307,15.0651,144.72,144.69,3.4556]
[1727085129507,11.61,144.72,144.63,11.61]
[1727085129707,12.9965,144.72,144.63,11.61]
[1727085129914,3.4555,144.71,144.67,3.4561]
[1727085130101,12.9965,144.72,144.63,11.61]
[1727085130508,1.4495,144.73,144.65,11.61]
[1727085132115,1.4495,144.73,144.67,11.61]
[1727085132503,1.4495,144.73,144.71,3.4552]
[1727085132703,1.4495,144.73,144.67,11.61]
[1727085132908,1.4546,144.74,144.67,11.61]
[1727085134315,1.4546,144.74,144.72,3.4551]
[1727085138316,7.44,144.73,144.72,3.4551]
[1727085138524,7.44,144.73,144.64,0.9968]
[1727085138525,7.44,144.73,144.64,7.44]
[1727085138719,7.44,144.69,144.64,7.44]
[1727085140326,15.0653,144.71,144.62,14.3317]
[1727085140820,15.0653,144.71,144.67,3.4561]
[1727085141421,3.4556,144.7,144.67,3.4561]
[1727085143631,3.4556,144.7,144.62,14.3317]
[1727085143632,15.0654,144.71,144.68,3.456]
[1727085143931,11.61,144.71,144.62,14.3317]
[1727085144521,11.61,144.71,144.68,3.4559]
[1727085145334,11.61,144.71,144.69,3.4558]
[1727085151429,15.0654,144.71,144.68,3.4558]
[1727085152524,15.0654,144.71,144.69,3.4558]